bitfinex-derivatives/quotes_SOLF0:USTF0_20250111
["timestamp","ask_amount","ask_price","bid_price","bid_amount"]
[1736595560532,7.15370978,186.69,186.68,2.6792]
[1736595563239,7.15370978,186.71,186.69,2.6791]
[1736595563434,7.15370978,186.71,186.64,7.15370978]
[1736595563941,7.15370978,186.71,186.68,2.6791]
[1736595564335,7.15370978,186.71,186.64,7.15370978]
[1736595564633,7.15370978,186.71,186.69,2.6791]
[1736595567540,9.83260978,186.71,186.62,7.15370978]
[1736595567740,7.15370978,186.69,186.62,7.15370978]
[1736595569136,2.6785,186.74,186.7,2.679]
[1736595569341,7.15370978,186.71,186.7,2.679]
[1736595570041,7.15370978,186.71,186.6,3.1412]
[1736595570242,7.15370978,186.71,186.69,2.6791]
[1736595570943,7.15370978,186.71,186.68,2.6792]
[1736595572245,2.6787,186.72,186.68,2.6792]
[1736595572246,7.15370978,186.69,186.68,2.6792]
[1736595573345,7.15370978,186.71,186.64,7.15370978]
[1736595573548,7.15370978,186.71,186.7,2.6788]
[1736595575645,7.15370978,186.71,186.68,2.6792]
[1736595575846,7.15370978,186.71,186.6,3.1412]
[1736595576044,7.15370978,186.71,186.66,2.6794]
[1736595576245,7.15370978,186.67,186.59,1.5717]
[1736595576439,7.15370978,186.65,186.58,7.15370978]
[1736595576643,7.15370978,186.65,186.61,2.6802]
[1736595576944,7.15370978,186.65,186.58,7.15370978]
[1736595577447,7.15370978,186.65,186.62,2.68]
[1736595577648,7.15370978,186.65,186.58,7.15370978]
[1736595578045,7.15370978,186.65,186.63,2.68]
[1736595581547,7.15370978,186.65,186.61,2.6802]
[1736595581749,7.15370978,186.63,186.61,2.6802]
[1736595585853,7.15370978,186.63,186.6,2.6804]
[1736595586051,7.15370978,186.61,186.6,2.6804]
[1736595586849,7.15370978,186.61,186.59,2.6805]
[1736595587048,7.15370978,186.61,186.56,5.56199405]
[1736595588357,7.15370978,186.61,186.59,2.6804]
[1736595589856,7.15370978,186.61,186.6,2.6804]
[1736595590057,7.15370978,186.63,186.56,5.56199405]
[1736595590257,7.15370978,186.63,186.57,7.15370978]
[1736595590852,2.6793,186.68,186.57,7.15370978]
[1736595591053,7.15370978,186.65,186.57,7.15370978]
[1736595591656,7.15370978,186.65,186.62,2.6801]
[1736595592162,7.15370978,186.63,186.58,2.6806]
[1736595592461,7.15370978,186.63,186.56,5.56199405]
[1736595592660,7.15370978,186.63,186.6,2.6804]
[1736595593065,7.15370978,186.63,186.56,5.56199405]
[1736595593257,7.15370978,186.61,186.56,5.56199405]
[1736595594266,7.15370978,186.61,186.57,2.6808]
[1736595594569,7.15370978,186.61,186.56,5.56199405]
[1736595594765,7.15370978,186.61,186.57,2.6808]
[1736595594965,7.15370978,186.61,186.56,5.56199405]
[1736595595465,7.15370978,186.61,186.57,2.6808]
[1736595595667,7.15370978,186.61,186.56,5.56199405]
[1736595597174,7.15370978,186.61,186.59,2.6805]
[1736595597971,7.15370978,186.61,186.57,2.6808]
[1736595598171,7.15370978,186.59,186.57,2.6808]
[1736595598371,7.15370978,186.59,186.52,7.15370978]
[1736595599264,7.15370978,186.59,186.56,2.6809]
[1736595599775,7.15370978,186.57,186.56,2.6809]
[1736595600274,7.15370978,186.57,186.49,7.15370978]
[1736595600471,7.15370978,186.55,186.48,7.15370978]
[1736595601067,7.15370978,186.55,186.52,2.6816]
[1736595601268,2.681,186.56,186.47,5.56499131]
[1736595601269,7.15370978,186.53,186.47,5.56499131]
[1736595601970,7.15370978,186.53,186.5,2.6818]
[1736595605376,7.15370978,186.53,186.51,2.6817]
[1736595609775,7.15370978,186.53,186.47,5.56499131]
[1736595609979,7.15370978,186.55,186.48,7.15370978]
[1736595612087,7.15370978,186.55,186.53,2.6813]
[1736595614084,3.1904,186.61,186.5,7.15370978]
[1736595614283,7.15370978,186.6,186.52,7.15370978]
[1736595617085,7.15370978,186.6,186.58,2.6806]
[1736595618189,7.15370978,186.6,186.56,2.6809]
[1736595618488,7.15370978,186.57,186.56,2.6809]
[1736595618887,1.5767,186.61,186.5,7.15370978]
[1736595619086,7.15370978,186.59,186.57,2.6808]
[1736595619283,7.15370978,186.59,186.52,7.15370978]
[1736595620489,7.15370978,186.59,186.57,2.6808]
[1736595621389,7.15370978,186.59,186.52,7.15370978]
[1736595621591,7.15370978,186.57,186.56,2.681]
[1736595623688,7.15370978,186.57,186.48,11.92400978]
[1736595623989,7.15370978,186.55,186.48,11.92400978]
[1736595624390,7.15370978,186.55,186.48,10.35770978]
[1736595624791,7.15370978,186.55,186.48,7.15370978]
[1736595624989,7.15370978,186.55,186.5,2.6818]
[1736595625187,7.15370978,186.55,186.48,7.15370978]
[1736595626097,7.15370978,186.55,186.52,2.6815]
[1736595626298,7.15370978,186.55,186.48,7.15370978]
[1736595626898,7.15370978,186.55,186.52,2.6815]
[1736595630199,7.15370978,186.53,186.5,2.6817]
[1736595632810,7.15370978,186.53,186.51,2.6817]
[1736595634104,7.15370978,186.53,186.47,5.56499131]
[1736595634404,7.15370978,186.5,186.47,5.56499131]
[1736595634801,7.15370978,186.5,186.49,2.682]
[1736595637207,4.2482,186.54,186.47,5.56499131]
[1736595637208,7.15370978,186.52,186.47,5.56499131]
[1736595637407,7.15370978,186.52,186.5,2.6817]
[1736595639011,1.5701,186.57,186.48,7.15370978]
[1736595639208,7.15370978,186.58,186.5,7.15370978]
[1736595640403,7.15370978,186.56,186.49,7.15370978]
[1736595640711,7.15370978,186.56,186.48,7.15370978]
[1736595641712,7.15370978,186.56,186.52,2.6814]
[1736595642100,2.6794,186.68,186.61,2.6802]
[1736595642302,7.15370978,186.63,186.61,2.6802]
[1736595648906,7.15370978,186.63,186.62,2.6801]
[1736595650309,7.15370978,186.63,186.56,7.15370978]
[1736595650508,7.15370978,186.63,186.61,2.6802]
[1736595651912,7.15370978,186.63,186.56,7.15370978]
[1736595652113,7.15370978,186.63,186.62,2.6801]
[1736595652309,1.6188,186.68,186.5,4.7908]
[1736595652507,7.15370978,186.65,186.58,7.15370978]
[1736595652713,7.15370978,186.65,186.63,2.6798]
[1736595655113,1.6188,186.68,186.58,7.15370978]
[1736595655415,7.15370978,186.68,186.6,7.15370978]
[1736595655610,7.15370978,186.68,186.67,2.6794]
[1736595656210,7.15370978,186.68,186.62,7.15370978]
[1736595656411,7.15370978,186.68,186.66,2.6795]
[1736595659014,7.15370978,186.7,186.67,2.6793]
[1736595660519,7.15370978,186.7,186.62,7.15370978]
[1736595660718,1.6115,186.73,186.64,7.15370978]
[1736595660918,8.76520978,186.73,186.64,7.15370978]
[1736595661320,8.76520978,186.73,186.7,2.6789]
[1736595661520,1.5277,186.8,186.68,7.15370978]
[1736595661723,7.15370978,186.76,186.68,7.15370978]
[1736595662019,7.15370978,186.76,186.73,2.6784]
[1736595662721,7.15370978,186.78,186.75,2.6783]
[1736595663018,7.15370978,186.76,186.65,7.15370978]
[1736595663213,7.15370978,186.72,186.65,7.15370978]
[1736595664321,1.6138,186.79,186.67,7.15370978]
[1736595664520,7.15370978,186.74,186.67,7.15370978]
[1736595665124,7.15370978,186.74,186.71,2.6787]
[1736595669625,4.2915,186.79,186.74,2.6784]
[1736595669830,7.15370978,186.78,186.74,2.6784]
[1736595670323,8.76750978,186.79,186.75,2.6782]
[1736595672635,2.6782,186.76,186.65,2.6797]
[1736595672929,1.6138,186.79,186.67,7.15370978]
[1736595672930,7.15370978,186.73,186.67,7.15370978]
[1736595673529,9.83240978,186.73,186.69,2.679]
[1736595673729,7.15370978,186.73,186.67,7.15370978]
[1736595674129,9.83200978,186.75,186.71,2.6788]
[1736595674531,9.83200978,186.75,186.67,7.15370978]
[1736595674834,9.83200978,186.75,186.72,2.6787]
[1736595675031,9.83200978,186.75,186.61,5.48]
[1736595675233,9.83200978,186.75,186.71,2.6788]
[1736595676231,2.6784,186.74,186.71,2.6788]
[1736595676433,7.15370978,186.73,186.71,2.6788]
[1736595677834,1.6138,186.79,186.71,2.6788]
[1736595678137,7.15370978,186.74,186.71,2.6788]
[1736595678835,2.6784,186.75,186.71,2.6788]
[1736595679034,7.15370978,186.74,186.71,2.6788]
[1736595680238,1.6138,186.79,186.69,7.15370978]
[1736595680432,7.15370978,186.77,186.69,7.15370978]
[1736595680734,7.15370978,186.77,186.75,2.6783]
[1736595681240,2.6778,186.78,186.74,2.6784]
[1736595681632,9.83170978,186.77,186.74,2.6784]
[1736595683132,7.15370978,186.77,186.73,2.6785]
[1736595683334,2.6781,186.76,186.73,2.6785]
[1736595683634,1.6138,186.79,186.73,2.6785]
[1736595683835,2.678,186.77,186.74,2.6784]
[1736595686541,2.6779,186.78,186.74,2.6784]
[1736595686740,7.15370978,186.77,186.74,2.6784]
[1736595690838,7.15370978,186.77,186.72,2.6786]
[1736595691340,2.6782,186.76,186.72,2.6786]
[1736595693738,7.15370978,186.77,186.69,7.15370978]
[1736595693944,2.6785,186.74,186.69,2.6791]
[1736595694141,7.15370978,186.75,186.69,2.6791]
[1736595694643,2.6787,186.73,186.69,2.6791]
[1736595694839,7.15370978,186.73,186.68,2.6793]
[1736595696445,9.83230978,186.73,186.68,2.6793]
[1736595696640,9.83230978,186.73,186.66,7.15370978]
[1736595696842,9.83230978,186.73,186.69,2.6791]
[1736595697744,7.15370978,186.73,186.7,2.679]
[1736595698644,7.15370978,186.76,186.68,7.15370978]
[1736595699243,7.15370978,186.76,186.73,2.6785]
[1736595701341,7.15370978,186.76,186.7,2.6789]
[1736595701548,7.15370978,186.76,186.68,7.15370978]
[1736595703145,7.15370978,186.76,186.73,2.6784]
[1736595704747,7.15370978,186.74,186.62,5.46]
[1736595704941,7.15370978,186.74,186.71,2.6787]
[1736595705247,7.15370978,186.74,186.66,7.15370978]
[1736595705448,9.83220978,186.74,186.7,2.6789]
[1736595707854,1.6138,186.79,186.66,7.15370978]
[1736595708150,7.15370978,186.74,186.66,7.15370978]
[1736595708550,7.15370978,186.74,186.71,2.6788]
[1736595711854,7.15370978,186.74,186.66,7.15370978]
[1736595712055,7.15370978,186.74,186.72,2.6787]
[1736595714355,2.6785,186.73,186.65,2.6796]
[1736595714558,2.6785,186.73,186.66,7.15370978]
[1736595714953,2.6787,186.72,186.69,2.679]
[1736595715154,7.15370978,186.72,186.64,7.15370978]
[1736595716050,7.15370978,186.72,186.62,5.46]
[1736595716051,1.6138,186.79,186.66,7.15370978]
[1736595716251,7.15370978,186.74,186.66,7.15370978]
[1736595716857,7.15370978,186.74,186.68,2.6792]
[1736595717059,7.15370978,186.74,186.66,7.15370978]
[1736595718058,9.83220978,186.74,186.68,2.6792]
[1736595718361,9.83220978,186.74,186.66,7.15370978]
[1736595718662,9.83220978,186.74,186.69,2.679]
[1736595719759,9.83220978,186.74,186.66,7.15370978]
[1736595720356,1.6138,186.79,186.61,5.46]
[1736595720564,7.15370978,186.75,186.66,7.15370978]
[1736595721066,9.83200978,186.75,186.71,2.6788]
[1736595721265,9.83200978,186.75,186.66,7.15370978]
[1736595721266,7.15370978,186.75,186.66,7.15370978]
[1736595721567,2.6785,186.74,186.66,7.15370978]
[1736595721866,7.15370978,186.75,186.66,7.15370978]
[1736595722667,7.15370978,186.73,186.61,5.56077629]
[1736595722864,7.15370978,186.73,186.64,7.15370978]
[1736595723874,7.15370978,186.71,186.67,2.6794]
[1736595724064,7.15370978,186.71,186.64,7.15370978]
[1736595724369,7.15370978,186.71,186.67,2.6793]
[1736595724867,9.83260978,186.71,186.67,2.6793]
[1736595725070,7.15370978,186.71,186.64,7.15370978]
[1736595725278,7.15370978,186.71,186.68,2.6792]
[1736595726163,7.15370978,186.73,186.64,7.15370978]
[1736595726375,7.15370978,186.73,186.69,2.6791]
[1736595727075,9.83230978,186.73,186.69,2.6791]
[1736595728869,2.6786,186.73,186.7,2.6789]
[1736595729071,9.83230978,186.73,186.7,2.6789]
[1736595732373,2.6786,186.73,186.7,2.6789]
[1736595732677,9.83230978,186.73,186.7,2.6789]
[1736595733883,9.83230978,186.73,186.66,4.46960978]
[1736595734990,7.15370978,186.73,186.69,2.679]
[1736595735191,7.15370978,186.71,186.64,7.15370978]
[1736595735585,7.15370978,186.71,186.68,2.6792]
[1736595736186,2.679,186.7,186.67,2.6794]
[1736595738591,2.679,186.7,186.64,7.15370978]
[1736595738787,2.679,186.7,186.66,2.6795]
[1736595744586,2.6794,186.68,186.64,2.6797]
[1736595744792,7.15370978,186.67,186.61,5.56077629]
[1736595744993,7.15370978,186.65,186.61,5.56077629]
[1736595746096,7.15370978,186.65,186.62,2.6801]
[1736595746595,9.83350978,186.65,186.61,2.6802]
[1736595746993,7.15370978,186.65,186.61,2.6802]
[1736595747791,7.15370978,186.65,186.62,2.6801]
[1736595754100,7.15370978,186.65,186.63,2.6799]
[1736595757903,7.15370978,186.65,186.59,7.15370978]
[1736595758104,7.15370978,186.65,186.62,2.6801]
[1736595760107,7.15370978,186.65,186.59,7.15370978]
[1736595760303,7.15370978,186.65,186.63,2.68]
[1736595762599,2.6796,186.66,186.63,2.68]
[1736595762799,7.15370978,186.65,186.63,2.68]
[1736595764808,7.15370978,186.65,186.59,7.15370978]
[1736595764996,9.83340978,186.65,186.62,2.6801]
[1736595774108,2.6795,186.67,186.64,2.6797]
[1736595782819,2.6792,186.69,186.62,7.15370978]
[1736595783017,1.5401,186.72,186.64,7.15370978]
[1736595783216,8.69380978,186.72,186.64,7.15370978]
[1736595783717,2.6789,186.71,186.67,2.6793]
[1736595784623,9.83260978,186.71,186.67,2.6793]
[1736595788621,7.15370978,186.71,186.64,7.15370978]
[1736595788824,7.15370978,186.69,186.64,2.6798]
[1736595789921,2.6793,186.68,186.64,2.6798]
[1736595792226,9.83280978,186.69,186.65,2.6797]
[1736595794131,7.15370978,186.7,186.64,7.15370978]
[1736595795034,7.15370978,186.7,186.67,2.6793]
[1736595798236,1.5401,186.72,186.68,2.6792]
[1736595798430,5.46,186.78,186.66,7.15370978]
[1736595798630,7.15370978,186.73,186.66,7.15370978]
[1736595800232,1.6238,186.78,186.68,7.15370978]
[1736595800438,7.15370978,186.75,186.68,7.15370978]
[1736595802138,7.15370978,186.75,186.72,2.6786]
[1736595804646,4.3483,186.81,186.76,2.6781]
[1736595804947,7.15370978,186.79,186.76,2.6781]
[1736595814347,2.6776,186.8,186.76,2.6781]
[1736595814645,7.15370978,186.79,186.76,2.6781]
[1736595815242,9.83130978,186.8,186.76,2.6781]
[1736595817351,7.15370978,186.78,186.76,2.6781]
[1736595818548,3.2953,186.85,186.77,7.15370978]
[1736595818740,1.6271,186.85,186.83,7.15370978]
[1736595820243,1.641,186.92,186.83,7.15370978]
[1736595820447,7.15370978,186.89,186.83,7.15370978]
[1736595821848,4.3163,186.9,186.85,2.6768]
[1736595822251,7.15370978,186.89,186.85,2.6768]
[1736595823051,7.15370978,186.89,186.83,7.15370978]
[1736595823255,7.15370978,186.87,186.83,2.6771]
[1736595823455,7.15370978,186.85,186.79,7.15370978]
[1736595823751,7.15370978,186.85,186.81,2.6773]
[1736595826455,4.2627,186.86,186.82,2.6772]
[1736595827153,1.586,186.86,186.83,2.6771]
[1736595827850,8.73970978,186.86,186.83,2.6771]
[1736595828253,1.586,186.86,186.83,2.6771]
[1736595828452,8.73970978,186.86,186.83,2.6771]
[1736595830152,7.15370978,186.84,186.64,5.46]
[1736595830352,7.15370978,186.77,186.65,4.693]
[1736595830553,7.15370978,186.75,186.69,7.15370978]
[1736595831049,7.15370978,186.75,186.63,5.46]
[1736595831050,7.15370978,186.75,186.67,7.15370978]
[1736595831256,7.15370978,186.73,186.67,7.15370978]
[1736595831455,9.83230978,186.73,186.67,9.83310978]
[1736595831658,7.15370978,186.73,186.67,7.15370978]
[1736595832159,7.15370978,186.73,186.68,2.6792]
[1736595832361,7.15370978,186.73,186.67,7.15370978]
[1736595833154,7.15370978,186.73,186.69,2.679]
[1736595833354,7.15370978,186.73,186.67,7.15370978]
[1736595834161,7.15370978,186.73,186.7,2.679]
[1736595834862,1.5363,186.76,186.69,7.15370978]
[1736595835068,8.74060978,186.77,186.71,7.15370978]
[1736595836065,8.74060978,186.77,186.73,2.6785]
[1736595836463,1.5869,186.77,186.73,2.6785]
[1736595836659,1.5869,186.77,186.71,7.15370978]
[1736595836866,1.5869,186.77,186.74,2.6784]
[1736595838171,1.5869,186.77,186.71,7.15370978]
[1736595838366,1.5869,186.77,186.75,2.6782]
[1736595839372,1.5869,186.77,186.74,2.6784]
[1736595839670,1.5869,186.77,186.61,5.46]
[1736595839869,1.5869,186.77,186.7,7.15370978]
[1736595840074,1.5869,186.77,186.72,2.6786]
[1736595840462,7.15370978,186.76,186.61,5.46]
[1736595840664,7.15370978,186.76,186.69,7.15370978]
[1736595842070,7.15370978,186.76,186.73,2.6785]
[1736595843471,7.15370978,186.76,186.72,2.6787]
[1736595844763,7.15370978,186.74,186.67,7.15370978]
[1736595844969,7.15370978,186.74,186.69,2.6791]
[1736595845774,7.15370978,186.74,186.7,2.6789]
[1736595847177,9.83210978,186.74,186.7,2.6789]
[1736595848476,7.15370978,186.74,186.7,2.6789]
[1736595849379,9.83210978,186.74,186.7,2.6789]
[1736595849778,7.15370978,186.72,186.7,2.6789]
[1736595850678,7.15370978,186.72,186.6,8.5045]
[1736595850870,7.15370978,186.72,186.65,7.15370978]
[1736595851176,7.15370978,186.72,186.68,2.6791]
[1736595851476,7.15370978,186.72,186.65,7.15370978]
[1736595851877,7.15370978,186.72,186.68,2.6792]
[1736595852878,9.83250978,186.72,186.67,2.6794]
[1736595854078,7.15370978,186.7,186.67,2.6794]
[1736595854479,2.6789,186.71,186.67,2.6794]
[1736595854680,9.83260978,186.71,186.67,2.6794]
[1736595855176,7.15370978,186.71,186.63,7.15370978]
[1736595855383,7.15370978,186.69,186.65,2.6797]
[1736595855577,7.15370978,186.69,186.61,7.15370978]
[1736595855773,7.15370978,186.67,186.61,7.15370978]
[1736595856183,7.15370978,186.67,186.59,52.02486243]
[1736595856579,7.15370978,186.67,186.63,2.6799]
[1736595858385,7.15370978,186.67,186.64,2.6798]
[1736595864484,1.5377,186.75,186.6,7.15370978]
[1736595864689,7.15370978,186.68,186.6,7.15370978]
[1736595864990,7.15370978,186.68,186.66,2.6795]
[1736595866891,2.6792,186.69,186.66,2.6795]
[1736595867093,7.15370978,186.68,186.66,2.6795]
[1736595872492,5.46,186.73,186.62,7.15370978]
[1736595872794,7.15370978,186.71,186.64,7.15370978]
[1736595873190,7.15370978,186.71,186.69,2.679]
[1736595876192,2.6786,186.73,186.69,2.679]
[1736595876393,7.15370978,186.73,186.71,2.6787]
[1736595881590,7.15370978,186.73,186.72,2.6787]
[1736595885199,1.5869,186.77,186.66,7.15370978]
[1736595885502,7.15370978,186.75,186.68,7.15370978]
[1736595886101,7.15370978,186.75,186.74,2.6784]
[1736595886401,8.74060978,186.77,186.7,7.15370978]
[1736595887200,8.74060978,186.77,186.75,2.6782]
[1736595890704,8.74060978,186.77,186.76,2.6781]
[1736595891401,8.74060978,186.77,186.73,2.6785]
[1736595891402,11.41860978,186.77,186.73,2.6785]
[1736595891610,7.15370978,186.75,186.68,7.15370978]
[1736595891997,7.15370978,186.75,186.74,2.6784]
[1736595896717,1.5869,186.77,186.74,2.6784]
[1736595897204,8.74060978,186.77,186.74,2.6784]
[1736595899110,7.15370978,186.77,186.7,7.15370978]
[1736595900213,7.15370978,186.77,186.76,2.6781]
[1736595902107,3.2304,186.82,186.7,7.15370978]
[1736595902315,7.15370978,186.79,186.78,2.6777]
[1736595903112,7.15370978,186.81,186.8,2.6775]
[1736595903814,7.15370978,186.83,186.82,2.6773]
[1736595904010,2.6766,186.87,186.82,2.6773]
[1736595904310,7.15370978,186.84,186.82,2.6773]
[1736595904508,7.15370978,186.84,186.81,2.6773]
[1736595904814,7.15370978,186.82,186.81,2.6773]
[1736595906016,7.15370978,186.82,186.8,2.6775]
[1736595906313,7.15370978,186.82,186.74,7.15370978]
[1736595907008,7.15370978,186.82,186.76,2.6781]
[1736595907313,5.46,186.9,186.6,34.54139937]
[1736595907314,7.15370978,186.78,186.6,34.54139937]
[1736595907510,7.15370978,186.76,186.7,7.15370978]
[1736595907715,7.15370978,186.76,186.72,2.6786]
[1736595909009,7.15370978,186.76,186.68,7.15370978]
[1736595909010,7.15370978,186.76,186.73,2.6785]
[1736595910809,7.15370978,186.74,186.68,7.15370978]
[1736595911304,7.15370978,186.74,186.63,5.46]
[1736595911510,7.15370978,186.74,186.71,2.6787]
[1736595911911,7.15370978,186.74,186.67,7.15370978]
[1736595912113,7.15370978,186.74,186.72,2.6787]
[1736595913015,7.15370978,186.74,186.62,8.7034]
[1736595913218,7.15370978,186.71,186.62,8.7034]
[1736595913516,7.15370978,186.71,186.64,7.15370978]
[1736595913915,7.15370978,186.71,186.62,1.6821]
[1736595914219,7.15370978,186.69,186.63,7.15370978]
[1736595915113,7.15370978,186.69,186.66,2.6795]
[1736595915915,7.15370978,186.69,186.67,2.6794]
[1736595916118,7.15370978,186.69,186.63,7.15370978]
[1736595916613,7.15370978,186.69,186.66,2.6795]
[1736595919319,1.5889,186.8,186.65,7.15370978]
[1736595919519,7.15370978,186.72,186.65,7.15370978]
[1736595920020,7.15370978,186.72,186.69,2.6791]
[1736595920716,7.15370978,186.7,186.61,1.5984]
[1736595920919,7.15370978,186.7,186.63,7.15370978]
[1736595922119,7.15370978,186.7,186.67,2.6794]
[1736595929638,7.15370978,186.68,186.67,2.6794]
[1736595938239,7.15370978,186.68,186.58,53.58489797]
[1736595938433,7.15370978,186.64,186.58,53.58489797]
[1736595938842,7.15370978,186.64,186.58,60.73860775]
[1736595940149,7.15370978,186.64,186.63,2.6799]
[1736595941446,7.15370978,186.66,186.64,2.6798]
[1736595943640,2.6788,186.71,186.67,2.6794]
[1736595943844,7.15370978,186.72,186.66,7.15370978]
[1736595944749,7.15370978,186.72,186.58,53.58489797]
[1736595944750,7.15370978,186.68,186.62,7.15370978]
[1736595945046,1.6739,186.73,186.58,53.58489797]
[1736595945047,7.15370978,186.66,186.58,53.58489797]
[1736595945246,7.15370978,186.66,186.63,2.6799]
[1736595947144,7.15370978,186.66,186.6,7.15370978]
[1736595947145,7.15370978,186.66,186.64,2.6798]
[1736595950143,1.6739,186.73,186.67,2.6794]
[1736595950447,7.15370978,186.69,186.67,2.6794]
[1736595954251,9.83290978,186.69,186.64,2.6797]
[1736595954848,9.83290978,186.69,186.65,2.6796]
[1736595955546,9.83290978,186.69,186.58,53.58489797]
[1736595955547,1.6739,186.73,186.62,7.15370978]
[1736595955845,7.15370978,186.69,186.62,7.15370978]
[1736595956242,7.15370978,186.71,186.64,7.15370978]
[1736595957955,7.15370978,186.71,186.67,2.6793]
[1736595958256,7.15370978,186.71,186.64,7.15370978]
[1736595958955,7.15370978,186.71,186.68,2.6792]
[1736595960055,7.15370978,186.71,186.64,7.15370978]
[1736595960251,7.15370978,186.69,186.66,2.6794]
[1736595960452,7.15370978,186.69,186.62,7.15370978]
[1736595961449,7.15370978,186.69,186.66,2.6794]
[1736595961953,7.15370978,186.69,186.67,2.6794]
[1736595963853,2.6787,186.72,186.62,7.15370978]
[1736595964154,7.15370978,186.71,186.64,7.15370978]
[1736595965051,7.15370978,186.71,186.67,2.6793]
[1736595965255,7.15370978,186.69,186.67,2.6793]
[1736595965757,7.15370978,186.69,186.68,2.6793]
[1736595966151,7.15370978,186.71,186.64,7.15370978]
[1736595966356,8.82760978,186.73,186.7,2.6789]
[1736595967156,7.15370978,186.72,186.66,2.6795]
[1736595967356,3.187,186.74,186.66,2.6795]
[1736595967357,8.70840978,186.74,186.66,7.15370978]
[1736595967559,7.15370978,186.74,186.66,7.15370978]
[1736595967759,7.15370978,186.74,186.72,2.6786]
[1736595968148,2.678,186.77,186.68,7.15370978]
[1736595968353,7.15370978,186.76,186.73,2.6785]
[1736595968555,2.6778,186.78,186.73,2.6785]
[1736595968756,7.15370978,186.76,186.73,2.6785]
[1736595968958,7.15370978,186.76,186.74,2.6784]
[1736595969157,9.83150978,186.78,186.74,2.6784]
[1736595969555,7.15370978,186.78,186.75,2.6782]
[1736595972457,7.15370978,186.76,186.62,1.6862]
[1736595972765,7.15370978,186.74,186.67,7.15370978]
[1736595973272,7.15370978,186.76,186.69,7.15370978]
[1736595973453,7.15370978,186.76,186.72,2.6786]
[1736595974563,7.15370978,186.76,186.73,2.6785]
[1736595976463,7.15370978,186.76,186.72,2.6787]
[1736595976964,7.15370978,186.74,186.72,2.6787]
[1736595980964,7.15370978,186.74,186.62,1.6862]
[1736595981160,7.15370978,186.7,186.62,1.6862]
[1736595981465,7.15370978,186.7,186.62,8.83990978]
[1736595982163,9.83270978,186.7,186.66,2.6795]
[1736595982364,1.67,186.73,186.66,2.6795]
[1736595982565,1.67,186.73,186.64,7.15370978]
[1736595982764,7.15370978,186.72,186.69,2.6791]
[1736595983160,7.15370978,186.72,186.64,7.15370978]
[1736595983361,7.15370978,186.7,186.64,7.15370978]
[1736595984166,7.15370978,186.7,186.66,2.6795]
[1736595986571,2.6788,186.71,186.66,2.6795]
[1736595986772,7.15370978,186.7,186.66,2.6795]
[1736595988068,7.15370978,186.68,186.62,7.15370978]
[1736595988574,7.15370978,186.66,186.58,52.02041546]
[1736595988779,7.15370978,186.66,186.59,7.15370978]
[1736595989667,7.15370978,186.66,186.58,52.02041546]
[1736595989864,7.15370978,186.66,186.59,7.15370978]
[1736595990869,7.15370978,186.66,186.62,2.68]
[1736595994371,9.83330978,186.66,186.62,2.68]
[1736595995976,7.15370978,186.66,186.63,2.6799]
[1736595996377,2.679,186.7,186.66,2.6795]
[1736595996576,1.67,186.73,186.65,7.15370978]
[1736595996781,7.15370978,186.72,186.65,7.15370978]
[1736595996973,1.67,186.73,186.7,2.679]
[1736595997271,1.67,186.73,186.67,7.15370978]
[1736595999182,7.15370978,186.74,186.67,7.15370978]
[1736595999376,7.15370978,186.74,186.71,2.6788]
[1736596001678,7.15370978,186.72,186.69,2.6791]
[1736596001878,7.15370978,186.7,186.64,7.15370978]
[1736596002469,7.15370978,186.7,186.66,2.6794]
[1736596002881,7.15370978,186.7,186.67,2.6794]
[1736596003776,7.15370978,186.7,186.62,3.192]
[1736596004083,7.15370978,186.66,186.6,7.15370978]
[1736596005282,7.15370978,186.66,186.62,2.6801]
[1736596006277,7.15370978,186.66,186.61,2.6802]
[1736596006481,7.15370978,186.66,186.6,7.15370978]
[1736596006881,7.15370978,186.66,186.61,2.6802]
[1736596007182,7.15370978,186.66,186.6,7.15370978]
[1736596007779,7.15370978,186.68,186.6,7.15370978]
[1736596007978,7.15370978,186.68,186.62,7.15370978]
[1736596008180,7.15370978,186.68,186.65,2.6797]
[1736596009478,7.15370978,186.68,186.66,2.6795]
[1736596010181,7.15370978,186.68,186.67,2.6794]
[1736596010480,1.5492,186.69,186.67,2.6794]
[1736596012387,1.5492,186.69,186.62,7.15370978]
[1736596013585,7.15370978,186.7,186.62,7.15370978]
[1736596014488,7.15370978,186.7,186.66,2.6794]
[1736596015291,7.15370978,186.7,186.67,2.6794]